[Event "Swiss Youth-ch U14 2023"]
[Site "Olten"]
[Date "2023.05.28"]
[Round "6.8"]
[White "Van Aepelen, Nikolai"]
[Black "Papaux, Jeremie"]
[Result "0-1"]
[ECO "E24"]
[WhiteElo "1623"]
[BlackElo "1491"]
[Annotator "NA RC"]
[PlyCount "70"]
[EventDate "2023.05.26"]
[EventType "swiss"]
[EventCountry "SUI"]
[SourceTitle "playchess.com"]
[Source "ChessBase"]
[SourceQuality "1"]
[TimeControl "5400+30"]

1. d4 {[%emt 0:00:03]} Nf6 {[%emt 0:00:04]} 2. c4 {[%emt 0:00:08]} e6 {[%emt 0:00:03]} 3. Nc3 {[%emt 0:00:08]} Bb4 {[%emt 0:00:05]} 4. Qc2 {[%emt 0:00:16]} c5 {[%emt 0:00:55]} 5. a3 {[%emt 0:02:12]} Bxc3+ {[%emt 0:00:15]} 6. bxc3 {[%emt 0:00:33]} d6 {[%emt 0:00:30]} 7. Nf3 {[%emt 0:00:18]} O-O {[%emt 0:00:42]} 8. e4 {[%emt 0:00:31]} b6 {[%emt 0:01:02]} 9. Bd3 {[%emt 0:00:28]} h6 {[%emt 0:01:32]} 10. O-O {[%emt 0:00:42]} Nc6 {[%emt 0:04:18]} 11. h3 {[%emt 0:04:42]} Bb7 {[%emt 0:04:39]} 12. Re1 {[%emt 0:05:10]} Qc7 {[%emt 0:02:06]} 13. Be3 {[%emt 0:04:03]} Rac8 {[%emt 0:01:49]} 14. d5 {[%emt 0:08:29]} Na5 {[%emt 0:04:38]} 15. Qe2 {[%emt 0:07:31]} Ba6 {[%emt 0:02:05]} 16. Nd2 {[%emt 0:00:19]} exd5 {[%emt 0:05:37]} 17. exd5 {[%emt 0:00:51]} Rce8 {[%emt 0:01:13]} 18. Qf3 {[%emt 0:00:27]} Re7 {[%emt 0:06:50]} 19. Bxh6 {[%emt 0:01:53]} Rfe8 {[%emt 0:00:40]} 20. Rxe7 {[%emt 0:01:36]} Qxe7 {[%emt 0:00:09]} 21. Bg5 {[%emt 0:00:51]} Qe5 {[%emt 0:00:27]} 22. Bxf6 {[%emt 0:00:22]} gxf6 {[%emt 0:00:12]} 23. Ne4 {[%emt 0:01:26]} f5 {[%emt 0:00:58]} 24. Re1 {[%emt 0:00:48]} Kf8 {[%emt 0:01:04]} 25. Qh5 {[%emt 0:01:43]} fxe4 {[%emt 0:01:10]} 26. Qh6+ {[%emt 0:00:30]} Qg7 {[%emt 0:00:10]} 27. Qxd6+ {[%emt 0:00:14]} Kg8 {[%emt 0:00:36]} 28. Re3 {[%emt 0:03:37]} Nb7 {[%emt 0:03:17]} 29. Qd7 {[%emt 0:01:15]} Rd8 {[%emt 0:03:30]} 30. Qa4 {[%emt 0:01:36]} exd3 {[%emt 0:02:52]} 31. Rg3 {[%emt 0:00:45]} Nd6 {[%emt 0:00:39]} 32. Rxg7+ {[%emt 0:00:22]} Kxg7 {[%emt 0:00:06]} 33. Qxa6 {[%emt 0:00:51]} d2 {[%emt 0:00:15]} 34. Qa4 {[%emt 0:00:20]} Re8 {[%emt 0:00:11]} 35. Kh2 {[%emt 0:02:48]} Re1 {[%emt 0:00:27]} 0-1

[Event "Swiss Youth-ch U14 2023"]
[Site "Olten"]
[Date "2023.05.29"]
[Round "7.1"]
[White "Gut, Raphael"]
[Black "Breyer, Thierry"]
[Result "0-1"]
[ECO "E42"]
[WhiteElo "1817"]
[BlackElo "1697"]
[Annotator "NA RC"]
[PlyCount "152"]
[EventDate "2023.05.26"]
[EventType "swiss"]
[EventCountry "SUI"]
[SourceTitle "playchess.com"]
[Source "ChessBase"]
[SourceQuality "1"]
[TimeControl "5400+30"]

1. d4 {[%emt 0:00:04]} Nf6 {[%emt 0:00:03]} 2. c4 {[%emt 0:00:03]} e6 {[%emt 0:00:04]} 3. Nc3 {[%emt 0:00:03]} Bb4 {[%emt 0:00:04]} 4. e3 {[%emt 0:00:04]} c5 {[%emt 0:00:17]} 5. Nge2 {[%emt 0:00:04]} b6 {[%emt 0:00:10]} 6. a3 {[%emt 0:00:07]} Ba5 {[%emt 0:00:07]} 7. Rb1 {[%emt 0:00:03]} Na6 {[%emt 0:00:05]} 8. g3 {[%emt 0:00:02] 8.Ng3 is setting a new trend.} O-O {[%emt 0:00:10]} 9. d5 {[%emt 0:02:04] [#]} Ne4 $146 {[%emt 0:05:46]} ({Predecessor:} 9... exd5 10. Bg2 d6 11. cxd5 Bf5 12. Ra1 Be4 13. O-O Bxg2 14. Kxg2 Re8 15. f3 Rb8 {0-1 Stalmach,R (2267)-Stocek,J (2595) Pardubice Test 2020 (2.1)}) 10. Bg2 {[%emt 0:04:18]} Bxc3+ {[%emt 0:04:26]} 11. Nxc3 {[%emt 0:00:25]} Nxc3 {[%emt 0:00:23]} 12. bxc3 {[%emt 0:00:03]} Bb7 {[%emt 0:01:30]} 13. O-O {[%emt 0:03:17]} Kh8 {[%emt 0:01:32]} (13... Nb8 $14 {feels stronger.}) 14. e4 {[%emt 0:05:17]} e5 {[%emt 0:01:41]} 15. f4 {[%emt 0:03:51]} f6 {[%emt 0:01:29]} 16. f5 {[%emt 0:03:59]} Nc7 {[%emt 0:01:30]} 17. Be3 {[%emt 0:01:38]} Ba6 {[%emt 0:00:19]} (17... Ne8 $1 $11 {keeps the balance.}) 18. Qa4 {[%emt 0:04:46]} Qc8 {[%emt 0:01:30]} 19. Rf3 {[%emt 0:03:01]} Ne8 {[%emt 0:00:56] [#]} 20. Bf1 $1 {[%emt 0:00:11]} Nd6 {[%emt 0:00:10]} 21. Bd3 {[%emt 0:00:04]} Rb8 {[%emt 0:06:46]} ({Better is} 21... Kg8) 22. g4 $16 {[%emt 0:14:32]} Kg8 {[%emt 0:09:51]} 23. g5 {[%emt 0:03:43]} Kf7 {[%emt 0:02:26]} 24. Rh3 {[%emt 0:05:52]} Rh8 {[%emt 0:02:38]} 25. Kh1 {[%emt 0:08:02]} Ke7 {[%emt 0:02:58]} 26. Rg1 {[%emt 0:06:34]} Bxc4 {[%emt 0:06:28]} 27. Bxc4 {[%emt 0:01:16]} b5 {[%emt 0:00:12]} 28. Qxa7 {[%emt 0:31:07]} Nxc4 {[%emt 0:06:40]} 29. gxf6+ {[%emt 0:00:00]} Kxf6 {[%emt 0:00:46]} 30. Qxc5 {[%emt 0:00:00]} Qxc5 {[%emt 0:03:03]} 31. Bxc5 {[%emt 0:00:00]} d6 {[%emt 0:00:51]} 32. Bb4 {[%emt 0:00:00]} Rb7 {[%emt 0:07:50]} 33. Kg2 {[%emt 0:00:00]} Ra7 {[%emt 0:05:11]} 34. Ra1 {[%emt 0:00:00]} Ra6 {[%emt 0:00:45]} 35. Kf3 {[%emt 0:00:00]} Raa8 {[%emt 0:08:14]} 36. Ke2 {[%emt 0:00:00]} Ra7 {[%emt 0:07:50]} 37. Kd3 {[%emt 0:00:00]} Nb2+ {[%emt 0:00:10]} 38. Kc2 {[%emt 0:00:00]} Nc4 {[%emt 0:00:10]} 39. Rh4 {[%emt 0:00:00]} Ra6 {[%emt 0:01:38]} 40. Rh3 {[%emt 0:00:00]} Raa8 {[%emt 0:00:43]} 41. Rd3 {[%emt 0:00:00]} g6 {[%emt 0:00:57]} 42. Rf3 {[%emt 0:00:00]} g5 {[%emt 0:00:22]} 43. Ra2 {[%emt 0:01:23]} h5 {[%emt 0:00:33]} 44. Kb3 {[%emt 0:00:26]} Ra4 {[%emt 0:00:29]} 45. Rg3 {[%emt 0:01:28]} h4 {[%emt 0:00:38]} 46. Rg4 {[%emt 0:00:36]} Rh5 {[%emt 0:00:17]} 47. h3 {[%emt 0:01:08]} Rh8 {[%emt 0:00:49]} 48. Rg1 {[%emt 0:00:08]} Rh5 {[%emt 0:00:09]} 49. Rag2 {[%emt 0:00:37]} Ra6 {[%emt 0:01:42]} 50. Re2 {[%emt 0:00:22]} Ra4 {[%emt 0:01:01]} 51. Rgg2 {[%emt 0:00:04]} Rh8 {[%emt 0:00:33]} 52. Rg1 {[%emt 0:01:06]} Rh6 {[%emt 0:00:19]} 53. Ra2 {[%emt 0:00:20]} Rh8 {[%emt 0:00:14]} 54. Kc2 {[%emt 0:00:15]} Rh7 {[%emt 0:01:10]} 55. Kd3 {[%emt 0:00:06]} Rh6 {[%emt 0:00:46]} 56. Rag2 {[%emt 0:00:31]} Rh5 {[%emt 0:00:55]} 57. Rb1 {[%emt 0:00:05]} Rh8 {[%emt 0:00:55]} 58. Ra2 {[%emt 0:00:15]} Rh6 {[%emt 0:00:29]} 59. Raa1 {[%emt 0:02:40]} Rh8 {[%emt 0:00:40]} 60. Rb3 {[%emt 0:00:03]} Rh6 {[%emt 0:00:36]} 61. Rab1 {[%emt 0:00:14]} Rh8 {[%emt 0:00:25]} 62. Bc5 {[%emt 0:00:34]} dxc5 {[%emt 0:01:20]} 63. Rxb5 {[%emt 0:05:09]} Nd6 {[%emt 0:03:17]} 64. Rxc5 {[%emt 0:00:00]} g4 {[%emt 0:03:41]} 65. Rb6 {[%emt 0:00:00]} Rd8 {[%emt 0:00:33]} 66. Rcc6 {[%emt 0:00:00]} gxh3 {[%emt 0:00:47]} 67. Rxd6+ {[%emt 0:00:00]} Rxd6 {[%emt 0:00:19]} 68. Rxd6+ {[%emt 0:00:00]} Kg5 {[%emt 0:02:18]} 69. Rg6+ {[%emt 0:00:00]} Kf4 {[%emt 0:00:18]} 70. f6 {[%emt 0:01:17]} h2 {[%emt 0:00:30]} 71. f7 {[%emt 0:00:07]} Ra8 {[%emt 0:00:26]} 72. Rf6+ {[%emt 0:01:56]} Kg3 {[%emt 0:00:18]} 73. Rf1 {[%emt 0:01:03]} Kg2 {[%emt 0:00:46]} 74. Ke2 {[%emt 0:00:35]} h1=Q {[%emt 0:00:07]} 75. Rxh1 {[%emt 0:00:02]} Kxh1 {[%emt 0:00:15]} 76. d6 {[%emt 0:00:03]} Kg2 {[%emt 0:00:19]} 0-1

[Event "Swiss Youth-ch U14 2023"]
[Site "Olten"]
[Date "2023.05.29"]
[Round "7.2"]
[White "Gut, Lionel"]
[Black "Haas, Anthony"]
[Result "1-0"]
[ECO "D36"]
[WhiteElo "2054"]
[BlackElo "1530"]
[Annotator "NA RC"]
[PlyCount "97"]
[EventDate "2023.05.26"]
[EventType "swiss"]
[EventCountry "SUI"]
[SourceTitle "playchess.com"]
[Source "ChessBase"]
[SourceQuality "1"]
[TimeControl "5400+30"]

1. d4 {[%emt 0:00:07]} d5 {[%emt 0:00:04]} 2. c4 {[%emt 0:00:05]} e6 {[%emt 0:00:04]} 3. Nc3 {[%emt 0:00:04]} Nf6 {[%emt 0:00:04]} 4. cxd5 {[%emt 0:00:07]} exd5 {[%emt 0:00:04]} 5. Bg5 {[%emt 0:00:12]} Be7 {[%emt 0:00:04]} 6. e3 {[%emt 0:00:06]} O-O {[%emt 0:00:12]} 7. Bd3 {[%emt 0:00:11]} Nbd7 {[%emt 0:08:20]} 8. Nge2 {[%emt 0:00:53]} c6 {[%emt 0:01:45]} 9. O-O {[%emt 0:00:35]} Re8 {[%emt 0:00:15]} 10. Qc2 {[%emt 0:00:47]} Nf8 {[%emt 0:00:41]} 11. Rae1 {[%emt 0:03:10]} g6 {[%emt 0:03:50]} 12. f3 {[%emt 0:05:32]} Ne6 {[%emt 0:04:14]} 13. Bh4 {[%emt 0:00:26]} Kg7 {[%emt 0:09:30]} 14. Kh1 {[%emt 0:00:51]} b5 {[%emt 0:11:16]} 15. Bf2 {[%emt 0:04:24]} a6 {[%emt 0:12:07]} 16. e4 {[%emt 0:07:29]} Bb7 {[%emt 0:05:10] [#]} (16... dxe4 $11 {keeps the balance.} 17. fxe4 (17. Nxe4 Bb7 $11) 17... Ng4) 17. Rd1 {[%emt 0:02:25]} (17. e5 $1 $16 {[%cal Re5f6]} Nh5 18. g3) 17... Rc8 {[%emt 0:09:49]} 18. Qd2 {[%emt 0:00:58]} Kg8 {[%emt 0:06:50]} 19. Nf4 {[%emt 0:06:45]} c5 {[%emt 0:15:46]} 20. Nxe6 {[%emt 0:09:12]} fxe6 {[%emt 0:00:06]} 21. e5 {[%emt 0:01:32]} Nd7 {[%emt 0:03:38]} 22. Ne2 {[%emt 0:01:12]} c4 {[%emt 0:00:51]} 23. Bb1 {[%emt 0:00:11]} a5 {[%emt 0:00:48]} 24. Qh6 {[%emt 0:00:36]} Bg5 {[%emt 0:01:04]} 25. Qh3 {[%emt 0:00:01]} Nf8 {[%emt 0:01:58]} 26. f4 {[%emt 0:01:19]} Be7 {[%emt 0:00:03]} 27. g4 {[%emt 0:01:30]} b4 {[%emt 0:04:28]} 28. f5 {[%emt 0:02:04]} Qc7 {[%emt 0:00:08]} 29. Be1 {[%emt 0:00:27]} Bd8 {[%emt 0:00:44]} 30. Nf4 {[%emt 0:52:19]} Qg7 {[%emt 0:00:34]} 31. Rg1 {[%emt 0:00:00]} Bg5 {[%emt 0:00:31]} 32. Ng2 {[%emt 0:00:00]} Qc7 {[%emt 0:00:36]} (32... Qh6 $16 {was necessary.} 33. Qf3 Kh8) 33. Bh4 {[%emt 0:00:00]} Bxh4 {[%emt 0:00:41]} 34. Nxh4 {[%emt 0:00:00]} c3 {[%emt 0:00:20]} 35. bxc3 {[%emt 0:00:00]} Qxc3 {[%emt 0:00:17]} 36. Rg3 {[%emt 0:00:00]} Qb2 {[%emt 0:00:26]} 37. fxg6 {[%emt 0:00:00]} hxg6 {[%emt 0:00:30]} 38. Nxg6 {[%emt 0:00:00]} Nxg6 {[%emt 0:00:10]} 39. Bxg6 {[%emt 0:00:00]} Re7 {[%emt 0:00:04]} 40. Rf3 {[%emt 0:00:00]} Qe2 {[%emt 0:00:38]} 41. Rdf1 {[%emt 0:00:00]} Rg7 {[%emt 0:00:34]} 42. Qh5 {[%emt 0:00:00]} a4 {[%emt 0:00:35]} 43. Bh7+ {[%emt 0:00:00]} Rxh7 {[%emt 0:00:22]} 44. Qg6+ {[%emt 0:00:00]} Rg7 {[%emt 0:00:15]} 45. Qxe6+ {[%emt 0:00:00]} Kh8 {[%emt 0:00:37]} 46. Rh3+ {[%emt 0:00:00]} Rh7 {[%emt 0:00:09]} 47. Qf6+ {[%emt 0:00:00]} Kg8 {[%emt 0:00:12]} 48. Qg6+ {[%emt 0:00:00]} Rg7 {[%emt 0:00:29]} 49. Qe6+ {[%emt 0:00:00]} 1-0

[Event "Swiss Youth-ch U14 2023"]
[Site "Olten"]
[Date "2023.05.29"]
[Round "7.3"]
[White "Delangle, Alexander"]
[Black "Malli, Suvirr"]
[Result "0-1"]
[ECO "B91"]
[WhiteElo "1621"]
[BlackElo "2114"]
[Annotator "TA"]
[PlyCount "102"]
[EventDate "2023.05.26"]
[EventType "swiss"]
[EventCountry "SUI"]
[SourceTitle "playchess.com"]
[Source "ChessBase"]
[SourceQuality "1"]
[TimeControl "5400+30"]

{[%evp 16,102,20,22,16,0,24,0,0,-14,0,-24,-14,-21,0,0,0,-12,-9,-96,-93,-102,-110,-116,-120,-138,-117,-166,-153,-211,-160,-156,-16,-181,-183,-237,-79,-217,-157,-190,-200,-136,-104,-155,-105,-151,-124,-124,-71,-124,-124,-124,-124,-124,-124,-124,-124,-156,-155,-199,-124,-314,-289,-308,-282,-433,-395,-418,-368,-469,-351,-633,-624,-652,-581,-819,-663,-1242,-1200,-1402,-1280,-1764,-1949,-29982,-2581,-1995,-1097,-29987,-29988]} 1. e4 {[%emt 0:00:03]} c5 {[%emt 0:00:09]} 2. Nf3 {[%emt 0:00:06]} d6 {[%emt 0:00:06]} 3. d4 {[%emt 0:00:14]} cxd4 {[%emt 0:00:07]} 4. Nxd4 {[%emt 0:00:04]} Nf6 {[%emt 0:00:10]} 5. Nc3 {[%emt 0:00:09]} a6 {[%emt 0:00:03]} 6. g3 {[%emt 0:00:39]} e5 {[%emt 0:00:22]} 7. Nb3 {[%emt 0:00:33]} Be7 {[%emt 0:00:35]} 8. Bg2 {[%emt 0:02:13]} O-O {[%emt 0:02:33]} 9. O-O {[%emt 0:02:15]} Qc7 {[%emt 0:05:54] B91: Sicilian Najdorf: 6 g3.} 10. Re1 {[%emt 0:06:02]} Be6 {[%emt 0:02:15]} 11. Bg5 {[%emt 0:09:20]} Nbd7 {[%emt 0:01:15] The position is equal.} 12. Nd2 {[%emt 0:05:58] [#]} h6 $146 {[%emt 0:00:52]} ({Predecessor:} 12... b5 13. a3 h6 14. Bxf6 Nxf6 15. Nf1 Rfc8 16. Ne3 Qc5 17. Re2 Bd8 18. Nf5 d5 {1-0 Schippers,M (2285)-Lukasiewicz,K (2290) POL-chT 1st League 2021 (4.1)}) 13. Bxf6 {[%emt 0:01:22]} Nxf6 {[%emt 0:00:14]} 14. Nf1 {[%emt 0:01:42]} Rac8 {[%emt 0:01:13]} 15. Ne3 {[%emt 0:03:57]} Qc5 {[%emt 0:07:53]} 16. Qd2 {[%emt 0:07:04]} b5 {[%emt 0:04:36]} 17. Ncd5 {[%emt 0:15:58]} (17. a3 $11) 17... Nxd5 $17 {[%emt 0:01:43]} 18. exd5 {[%emt 0:01:40]} Bd7 {[%emt 0:00:12]} 19. Kh1 {[%emt 0:10:48]} Bg5 {[%emt 0:04:09]} 20. c3 {[%emt 0:05:49]} Rce8 {[%emt 0:03:37]} 21. h4 {[%emt 0:04:42]} (21. Qd3 $17) 21... Bd8 $1 $19 {[%emt 0:01:40]} 22. Qc2 {[%emt 0:03:09]} (22. Bf3 $17 {is a better defense.}) 22... Qc8 {[%emt 0:02:06]} 23. c4 {[%emt 0:03:55]} b4 {[%emt 0:02:37]} (23... f5 $17 {Hoping for ...Ba5.} 24. cxb5 Qxc2 25. Nxc2 Bb6) 24. Kh2 $2 {[%emt 0:01:43]} (24. c5 $1 $11) 24... f5 {[%emt 0:01:28]} 25. Bh3 {[%emt 0:01:16]} (25. Nd1 $142) 25... Rf7 $2 {[%emt 0:03:16]} (25... f4 $19 26. Bxd7 Qxd7) 26. Ng2 {[%emt 0:01:32]} (26. c5 $17 {might work better.} dxc5 27. Rad1) 26... Ba5 {[%emt 0:25:24]} 27. Qc1 {[%emt 0:02:51] [#]} Bb6 $1 {[%emt 0:02:20]} 28. f4 {[%emt 0:01:31]} e4 {[%emt 0:00:23] Black is more active.} 29. Ne3 {[%emt 0:00:53]} ({White should play} 29. h5) 29... h5 {[%emt 0:00:32]} (29... a5 $142 {[%cal Og7g5]} 30. Ng2 Qd8) 30. Qd1 {[%emt 0:01:04]} (30. a3 $142) 30... g6 {[%emt 0:00:10]} 31. b3 {[%emt 0:00:24]} Bd8 {[%emt 0:02:53]} ({Black should try} 31... Qc5 32. Nc2 a5) 32. Rc1 {[%emt 0:00:56]} (32. a3 $142) 32... Qc5 $17 {[%emt 0:00:37]} 33. Qe2 {[%emt 0:00:35]} Bf6 {[%emt 0:01:55]} 34. Bg2 {[%emt 0:00:58]} Rfe7 {[%emt 0:02:29]} 35. Kh3 {[%emt 0:01:07]} a5 {[%emt 0:00:56]} 36. Rc2 {[%emt 0:00:20]} Ra8 {[%emt 0:02:33][%cal Be8a8,Ba8a4,Ba4a3][%mdl 32]} 37. Qd1 {[%emt 0:01:12] [#]} a4 {[%emt 0:01:58]} (37... Bd4 $1 $19 {[%cal Rd4e3]} 38. Rce2 a4) 38. Rce2 {[%emt 0:01:35]} (38. Rc1 $17 {is the only way for White.}) 38... Bc3 $19 {[%emt 0:00:47]} 39. Rf1 {[%emt 0:01:06] White is weak on the dark squares} Be8 {[%emt 0:01:13]} 40. bxa4 {[%emt 0:00:31]} (40. Qc2 $142) 40... Rxa4 {[%emt 0:01:24]} (40... Bxa4 $2 {is the wrong capture.} 41. Qb1 $19) 41. Qb1 {[%emt 0:00:21]} Bd4 {[%emt 0:05:30]} 42. Rfe1 {[%emt 0:00:45]} Bd7 {[%emt 0:02:11]} 43. Qc2 $2 {[%emt 0:00:40]} (43. Bf1) 43... Ra3 {[%emt 0:00:55][%cal Rd4e3]} 44. Nd1 {[%emt 0:01:06]} Re8 {[%emt 0:01:44]} 45. Rd2 {[%emt 0:00:42]} Rea8 {[%emt 0:01:07]} 46. Bf1 {[%emt 0:00:16]} Ba4 {[%emt 0:01:18] This pair of bishops is nice.} 47. Qb1 {[%emt 0:00:22]} Bxd1 {[%emt 0:00:34]} 48. Rexd1 {[%emt 0:00:39]} Bf2 {[%emt 0:00:20]} 49. Qc2 {[%emt 0:00:29]} Bxg3 {[%emt 0:00:44]} (49... Qe3 $142 50. Rd3 exd3 51. Rxd3 Qe4 52. Bg2 Qxd3 53. Qxf2 Rxa2 54. Qe1 Re2 55. Qh1 Ra3 56. Qh2 Rea2 57. Be4 Rxh2+ 58. Kxh2 Qxg3+ 59. Kh1 Ra1+ 60. Bb1 Rxb1#) 50. Kg2 {[%emt 0:00:40]} Bxh4 {[%emt 0:01:06] ( -> ...Rg3+)} 51. Rd4 {[%emt 0:00:25]} Rxa2 {[%emt 0:00:10] Weighted Error Value: White=0.97/Black=0.56} 0-1

[Event "Swiss Youth-ch U14 2023"]
[Site "Olten"]
[Date "2023.05.29"]
[Round "7.4"]
[White "Stoll, Arturo"]
[Black "Kanana, Ziad"]
[Result "0-1"]
[ECO "E60"]
[WhiteElo "1607"]
[BlackElo "1828"]
[Annotator "NA RC"]
[PlyCount "43"]
[EventDate "2023.05.26"]
[EventType "swiss"]
[EventCountry "SUI"]
[SourceTitle "playchess.com"]
[Source "ChessBase"]
[SourceQuality "1"]
[TimeControl "5400+30"]

1. d4 {[%emt 0:00:21]} Nf6 {[%emt 0:00:13]} 2. c4 {[%emt 0:00:09]} g6 {[%emt 0:00:04]} 3. h4 {[%emt 0:00:06]} h5 {[%emt 0:03:34]} 4. Nc3 {[%emt 0:00:47]} Bg7 {[%emt 0:00:15]} 5. e4 {[%emt 0:01:34]} d6 {[%emt 0:00:17]} 6. Bg5 {[%emt 0:00:41]} O-O {[%emt 0:03:14]} 7. Qd2 {[%emt 0:03:18]} c5 {[%emt 0:02:54]} 8. d5 $1 {[%emt 0:00:46]} Qa5 {[%emt 0:07:25]} 9. f3 {[%emt 0:07:43]} a6 {[%emt 0:10:35]} 10. Nh3 {[%emt 0:08:56]} Nbd7 {[%emt 0:05:02]} 11. Be2 {[%emt 0:06:01]} Re8 $14 {[%emt 0:09:46]} (11... Ne5 $11) 12. Bh6 {[%emt 0:13:23]} Ne5 {[%emt 0:08:04]} 13. Bxg7 {[%emt 0:01:58]} Kxg7 {[%emt 0:00:02]} 14. Nf4 {[%emt 0:07:31]} Rh8 {[%emt 0:13:57]} 15. Kf2 {[%emt 0:10:18]} Bd7 {[%emt 0:02:20]} 16. Rag1 {[%emt 0:09:17]} b5 {[%emt 0:02:46]} 17. g4 {[%emt 0:02:01]} hxg4 {[%emt 0:07:37]} 18. h5 {[%emt 0:00:12]} b4 {[%emt 0:02:16]} 19. Nd1 {[%emt 0:03:34]} gxf3 {[%emt 0:01:01]} 20. h6+ {[%emt 0:03:59]} Kf8 {[%emt 0:02:37]} 21. Bxf3 {[%emt 0:05:24]} Bg4 {[%emt 0:00:53]} 22. Bxg4 {[%emt 0:13:31]} 0-1

[Event "Swiss Youth-ch U14 2023"]
[Site "Olten"]
[Date "2023.05.29"]
[Round "7.5"]
[White "Gade, Niels Severin"]
[Black "Udipi, Kala Kishan"]
[Result "1/2-1/2"]
[ECO "B01"]
[WhiteElo "1689"]
[BlackElo "1904"]
[Annotator "NA RC"]
[PlyCount "148"]
[EventDate "2023.05.26"]
[EventType "swiss"]
[EventCountry "SUI"]
[SourceTitle "playchess.com"]
[Source "ChessBase"]
[SourceQuality "1"]
[TimeControl "5400+30"]

1. e4 {[%emt 0:00:03]} d5 {[%emt 0:00:11]} 2. exd5 {[%emt 0:00:18]} Nf6 {[%emt 0:00:06]} 3. Nf3 {[%emt 0:01:03]} Nxd5 {[%emt 0:01:22]} 4. c4 {[%emt 0:01:47]} Nf6 {[%emt 0:00:40]} 5. Nc3 {[%emt 0:00:32]} g6 {[%emt 0:02:49]} 6. d4 {[%emt 0:01:33]} Bg7 {[%emt 0:00:19]} 7. Be2 {[%emt 0:01:23]} O-O {[%emt 0:00:38]} 8. O-O {[%emt 0:00:10]} b6 {[%emt 0:00:17]} 9. Be3 {[%emt 0:01:43]} Bb7 {[%emt 0:00:30]} 10. Qd2 {[%emt 0:03:01]} Re8 {[%emt 0:01:26]} 11. Rad1 {[%emt 0:01:05]} Nbd7 {[%emt 0:01:12]} 12. h3 {[%emt 0:06:20]} a6 {[%emt 0:02:43]} 13. a4 {[%emt 0:04:13]} h5 {[%emt 0:07:08]} 14. Bg5 {[%emt 0:06:06]} Qb8 {[%emt 0:08:34]} 15. Bf4 {[%emt 0:04:39]} Qa7 {[%emt 0:03:39]} 16. Qe3 {[%emt 0:06:03]} ({Stronger than} 16. Bxc7 Bxf3 {[%mdl 64] Discovered Attack} 17. Bxf3 Qxc7 $17) 16... Rac8 {[%emt 0:03:08]} 17. Ne5 {[%emt 0:02:37]} Qa8 {[%emt 0:06:18]} 18. Bf3 {[%emt 0:01:48]} Bxf3 {[%emt 0:00:57]} 19. Nxf3 {[%emt 0:00:36]} ({But not} 19. gxf3 c5 $11) 19... e6 {[%emt 0:10:35]} 20. b4 {[%emt 0:07:14]} c6 {[%emt 0:04:25] [#]} (20... Bf8 $14) 21. Ra1 {[%emt 0:03:25]} (21. Ne5 $1 $16) 21... a5 {[%emt 0:09:19]} 22. b5 {[%emt 0:03:28] [#]} c5 $1 {[%emt 0:01:09]} 23. Ne5 {[%emt 0:08:18]} (23. Rad1 $1 $11) 23... cxd4 {[%emt 0:06:16]} 24. Qxd4 {[%emt 0:00:20]} Nxe5 {[%emt 0:01:16]} 25. Bxe5 {[%emt 0:00:19]} Red8 {[%emt 0:02:22]} 26. Qf4 {[%emt 0:02:53]} Ne8 {[%emt 0:02:42]} 27. Bxg7 $1 {[%emt 0:00:50]} Kxg7 {[%emt 0:00:20]} 28. Rad1 {[%emt 0:02:14]} Qb8 {[%emt 0:06:36]} 29. Qe4 {[%emt 0:04:14]} Nf6 {[%emt 0:01:58]} 30. Qe2 {[%emt 0:01:10]} Qf4 {[%emt 0:01:05]} 31. g3 {[%emt 0:02:22]} Qf5 {[%emt 0:00:43]} 32. Kg2 $17 {[%emt 0:01:18]} (32. Rxd8 $15 Rxd8 33. Rd1) 32... Rxd1 {[%emt 0:02:05]} 33. Rxd1 {[%emt 0:00:20]} Qc5 {[%emt 0:00:13]} 34. Ne4 {[%emt 0:01:42]} Qxc4 {[%emt 0:08:16]} 35. Qxc4 {[%emt 0:00:21]} Rxc4 {[%emt 0:00:04]} 36. Nxf6 {[%emt 0:00:16]} Kxf6 {[%emt 0:00:06]} 37. Rd6 {[%emt 0:00:21]} Rxa4 {[%emt 0:00:12]} 38. Rxb6 {[%emt 0:00:06]} Rb4 {[%emt 0:00:06]} 39. Rb8 {[%emt 0:00:15]} a4 {[%emt 0:00:03]} 40. b6 {[%emt 0:00:44]} a3 {[%emt 0:00:03]} 41. Ra8 {[%emt 0:00:18]} Rxb6 {[%emt 0:00:10]} 42. Rxa3 {[%emt 0:00:06]} Rb5 {[%emt 0:00:18]} 43. Ra4 {[%emt 0:00:50]} g5 {[%emt 0:00:39]} 44. Rc4 {[%emt 0:04:08]} Rd5 {[%emt 0:00:18]} 45. Rb4 {[%emt 0:00:37]} Rd6 {[%emt 0:00:48]} 46. Ra4 {[%emt 0:02:00]} e5 {[%emt 0:00:28]} 47. g4 {[%emt 0:04:43]} h4 {[%emt 0:01:57]} 48. Re4 {[%emt 0:03:09]} Ke6 {[%emt 0:00:24]} 49. Re3 {[%emt 0:01:17]} Rd4 {[%emt 0:01:40]} 50. Ra3 {[%emt 0:00:51]} e4 {[%emt 0:02:15]} 51. Ra5 {[%emt 0:02:21]} Rd5 {[%emt 0:00:12]} 52. Ra4 {[%emt 0:00:39]} Ke5 {[%emt 0:00:39]} 53. Ra7 {[%emt 0:00:25]} f6 {[%emt 0:00:37]} 54. Re7+ {[%emt 0:00:13]} Kf4 {[%emt 0:00:44]} 55. Rf7 {[%emt 0:00:26]} Ke5 {[%emt 0:03:45]} 56. Re7+ {[%emt 0:00:17]} Kd4 {[%emt 0:00:22]} 57. Rf7 {[%emt 0:00:24]} Rd6 {[%emt 0:00:09]} 58. Re7 {[%emt 0:00:48]} Kd5 {[%emt 0:00:28]} 59. Re8 {[%emt 0:00:25]} Re6 {[%emt 0:00:30]} 60. Rd8+ {[%emt 0:00:09]} Ke5 {[%emt 0:00:53]} 61. Ra8 {[%emt 0:00:20]} Kd4 {[%emt 0:00:39]} 62. Ra4+ {[%emt 0:00:39]} Kc5 {[%emt 0:00:53]} 63. Ra3 {[%emt 0:00:19]} Kb4 {[%emt 0:00:28]} 64. Re3 {[%emt 0:00:19]} Kc4 {[%emt 0:00:22]} 65. Ra3 {[%emt 0:00:16]} Kd5 {[%emt 0:00:15]} 66. Ra5+ {[%emt 0:00:18]} Kd6 {[%emt 0:00:15]} 67. Ra3 {[%emt 0:00:23]} Ke7 {[%emt 0:00:10]} 68. Kf1 {[%emt 0:00:37]} Kf7 {[%emt 0:01:00]} 69. Ke2 {[%emt 0:00:12]} Kg6 {[%emt 0:00:13]} 70. Ke3 {[%emt 0:01:55]} f5 {[%emt 0:00:38]} 71. gxf5+ {[%emt 0:00:24]} Kxf5 {[%emt 0:00:02]} 72. Ra5+ {[%emt 0:01:43]} Re5 {[%emt 0:01:12]} 73. Ra8 {[%emt 0:00:31]} Re7 {[%emt 0:00:28]} 74. Ra5+ {[%emt 0:00:41]} Re5 {[%emt 0:00:11]} 1/2-1/2